[Event "Titled Tuesday Blitz May 4 2021"]
[White "Kabanov, Nikolai"]
[Black "Yurtseven, Melih"]
[WhiteFideId "4127820"]
[BlackFideId "6312160"]
[WhiteElo "2376"]
[BlackElo "2160"]
[Result "0-1"]
[Round "10"]
[TimeControl "180+1"]
[Date "2021.05.04"]
[WhiteClock "0:00:03"]
[BlackClock "0:01:22"]

1. e4 {[%clk 0:03:00]}  e6 {[%clk 0:03:00]} 2. d4 {[%clk 0:02:59]}  d5 {[%clk 0:03:00]} 3. exd5 {[%clk 0:03:00]}  exd5 {[%clk 0:03:00]} 4. Bd3 {[%clk 0:03:00]}  Bd6 {[%clk 0:03:00]} 5. Ne2 {[%clk 0:03:00]}  Ne7 {[%clk 0:03:00]} 6. Bf4 {[%clk 0:03:00]}  Nbc6 {[%clk 0:02:57]} 7. c3 {[%clk 0:03:00]}  Bg4 {[%clk 0:02:57]} 8. f3 {[%clk 0:03:00]}  Bh5 {[%clk 0:02:57]} 9. O-O {[%clk 0:03:00]}  Qd7 {[%clk 0:02:56]} 10. Qd2 {[%clk 0:02:53]}  f6 {[%clk 0:02:55]} 11. Bxd6 {[%clk 0:02:38]}  Qxd6 {[%clk 0:02:56]} 12. Qf4 {[%clk 0:02:38]}  Qxf4 {[%clk 0:02:51]} 13. Nxf4 {[%clk 0:02:38]}  Bf7 {[%clk 0:02:52]} 14. Re1 {[%clk 0:02:28]}  Kd7 {[%clk 0:02:52]} 15. Nd2 {[%clk 0:02:26]}  g5 {[%clk 0:02:52]} 16. Ne2 {[%clk 0:02:26]}  Bg6 {[%clk 0:02:40]} 17. Bb5 {[%clk 0:02:13]}  Nf5 {[%clk 0:02:36]} 18. Kf2 {[%clk 0:02:07]}  Rhe8 {[%clk 0:02:33]} 19. Ng3 {[%clk 0:02:02]}  a6 {[%clk 0:02:29]} 20. Bxc6+ {[%clk 0:02:02]}  Kxc6 {[%clk 0:02:29]} 21. Nxf5 {[%clk 0:01:33]}  Bxf5 {[%clk 0:02:30]} 22. Rxe8 {[%clk 0:01:28]}  Rxe8 {[%clk 0:02:31]} 23. Re1 {[%clk 0:01:29]}  Rf8 {[%clk 0:02:31]} 24. f4 {[%clk 0:01:25]}  gxf4 {[%clk 0:02:20]} 25. Re7 {[%clk 0:01:25]}  Kd6 {[%clk 0:02:19]} 26. Re1 {[%clk 0:01:13]}  Rg8 {[%clk 0:02:17]} 27. h3 {[%clk 0:01:07]}  h5 {[%clk 0:02:09]} 28. Re2 {[%clk 0:00:48]}  Bd3 {[%clk 0:02:03]} 29. Re1 {[%clk 0:00:48]}  b6 {[%clk 0:02:04]} 30. Nf3 {[%clk 0:00:42]}  Be4 {[%clk 0:02:03]} 31. Re2 {[%clk 0:00:39]}  Rg3 {[%clk 0:01:59]} 32. Nh4 {[%clk 0:00:38]}  c5 {[%clk 0:01:56]} 33. Ke1 {[%clk 0:00:30]}  cxd4 {[%clk 0:01:53]} 34. cxd4 {[%clk 0:00:29]}  Rd3 {[%clk 0:01:51]} 35. Rf2 {[%clk 0:00:20]}  Rxd4 {[%clk 0:01:47]} 36. Rxf4 {[%clk 0:00:20]}  Ke5 {[%clk 0:01:48]} 37. Nf3+ {[%clk 0:00:14]}  Kxf4 {[%clk 0:01:42]} 38. Nxd4 {[%clk 0:00:14]}  Bxg2 {[%clk 0:01:43]} 39. h4 {[%clk 0:00:11]}  Kg4 {[%clk 0:01:42]} 40. Nc6 {[%clk 0:00:06]}  Kxh4 {[%clk 0:01:38]} 41. Kf2 {[%clk 0:00:07]}  Be4 {[%clk 0:01:37]} 42. Nb8 {[%clk 0:00:06]}  Kg4 {[%clk 0:01:23]} 43. Nd7 {[%clk 0:00:06]}  f5 {[%clk 0:01:22]} 44. Nxb6 {[%clk 0:00:05]}  h4 {[%clk 0:01:22]} 45. Nd7 {[%clk 0:00:05]}  h3 {[%clk 0:01:22]} 46. Ne5+ {[%clk 0:00:04]}  Kf4 {[%clk 0:01:22]} 47. Ng6+ {[%clk 0:00:03]}  Kg5 {[%clk 0:01:22]} 0-1


[Site "https://www.chess.com"]

[Event "Titled Tuesday Blitz May 4 2021"]
[White "Kanyamarala, Trisha"]
[Black "Langner, Ladislav"]
[WhiteFideId "45004722"]
[BlackFideId "300403"]
[WhiteElo "2074"]
[BlackElo "2346"]
[Result "0-1"]
[Round "10"]
[TimeControl "180+1"]
[Date "2021.05.04"]
[WhiteClock "0:00:08"]
[BlackClock "0:01:00"]

1. d4 {[%clk 0:03:00]}  Nf6 {[%clk 0:02:59]} 2. c4 {[%clk 0:02:54]}  g6 {[%clk 0:03:00]} 3. Nc3 {[%clk 0:02:53]}  d5 {[%clk 0:03:00]} 4. cxd5 {[%clk 0:02:52]}  Nxd5 {[%clk 0:03:01]} 5. e4 {[%clk 0:02:52]}  Nxc3 {[%clk 0:03:02]} 6. bxc3 {[%clk 0:02:53]}  c5 {[%clk 0:03:03]} 7. Be3 {[%clk 0:02:51]}  Bg7 {[%clk 0:03:02]} 8. Nf3 {[%clk 0:02:51]}  Bg4 {[%clk 0:03:02]} 9. Rb1 {[%clk 0:02:48]}  Nc6 {[%clk 0:02:50]} 10. Rxb7 {[%clk 0:02:25]}  cxd4 {[%clk 0:02:47]} 11. cxd4 {[%clk 0:02:24]}  Bxf3 {[%clk 0:02:33]} 12. Qxf3 {[%clk 0:01:36]}  Nxd4 {[%clk 0:02:25]} 13. Bxd4 {[%clk 0:01:33]}  Qa5+ {[%clk 0:02:10]} 14. Ke2 {[%clk 0:00:31]}  Bxd4 {[%clk 0:01:54]} 15. Qd3 {[%clk 0:00:18]}  Qxa2+ {[%clk 0:01:52]} 16. Qd2 {[%clk 0:00:17]}  Qa6+ {[%clk 0:01:46]} 17. Kf3 {[%clk 0:00:13]}  Qxb7 {[%clk 0:01:45]} 18. Qxd4 {[%clk 0:00:13]}  O-O {[%clk 0:01:45]} 19. Be2 {[%clk 0:00:11]}  Rfd8 {[%clk 0:01:35]} 20. Qe3 {[%clk 0:00:11]}  Rac8 {[%clk 0:01:31]} 21. h4 {[%clk 0:00:11]}  Qb4 {[%clk 0:01:29]} 22. Rc1 {[%clk 0:00:10]}  Rxc1 {[%clk 0:01:22]} 23. Qxc1 {[%clk 0:00:11]}  Qb3+ {[%clk 0:01:12]} 24. Kg4 {[%clk 0:00:10]}  h5+ {[%clk 0:01:07]} 25. Kg5 {[%clk 0:00:09]}  Kg7 {[%clk 0:01:02]} 26. Qa1+ {[%clk 0:00:08]}  f6+ {[%clk 0:01:00]} 27. Kf4 {[%clk 0:00:08]}  e5+ {[%clk 0:01:00]} 0-1


[Site "https://www.chess.com"]

[Event "Titled Tuesday Blitz May 4 2021"]
[White "Kapitanchuk, Tomas"]
[Black "Onufrienko, Vladislav"]
[WhiteFideId "135046"]
[BlackFideId "13804332"]
[WhiteElo "1955"]
[BlackElo "1661"]
[Result "0-1"]
[Round "10"]
[TimeControl "180+1"]
[Date "2021.05.04"]
[WhiteClock "0:02:53"]
[BlackClock "0:02:44"]

1. e4 {[%clk 0:03:00]}  c5 {[%clk 0:03:00]} 2. Nf3 {[%clk 0:02:57]}  Nc6 {[%clk 0:03:00]} 3. Bb5 {[%clk 0:02:58]}  e5 {[%clk 0:02:59]} 4. Bxc6 {[%clk 0:02:57]}  dxc6 {[%clk 0:02:59]} 5. O-O {[%clk 0:02:57]}  Bd6 {[%clk 0:02:58]} 6. c3 {[%clk 0:02:57]}  Ne7 {[%clk 0:02:57]} 7. d4 {[%clk 0:02:57]}  cxd4 {[%clk 0:02:57]} 8. cxd4 {[%clk 0:02:58]}  exd4 {[%clk 0:02:57]} 9. Qxd4 {[%clk 0:02:59]}  O-O {[%clk 0:02:55]} 10. e5 {[%clk 0:02:59]}  Bc7 {[%clk 0:02:53]} 11. Qh4 {[%clk 0:02:58]}  Ng6 {[%clk 0:02:49]} 12. Qxd8 {[%clk 0:02:56]}  Rxd8 {[%clk 0:02:48]} 13. Re1 {[%clk 0:02:57]}  Bg4 {[%clk 0:02:48]} 14. Bg5 {[%clk 0:02:53]}  Re8 {[%clk 0:02:44]} 0-1


[Site "https://www.chess.com"]

[Event "Titled Tuesday Blitz May 4 2021"]
[White "Keymer, Vincent"]
[Black "Saraci, Nderim"]
[WhiteFideId "12940690"]
[BlackFideId "6351921"]
[WhiteElo "2474"]
[BlackElo "2486"]
[Result "1-0"]
[Round "10"]
[TimeControl "180+1"]
[Date "2021.05.04"]
[WhiteClock "0:00:08"]
[BlackClock "0:00:01"]

1. Nf3 {[%clk 0:03:00]}  d5 {[%clk 0:02:58]} 2. c4 {[%clk 0:03:01]}  c6 {[%clk 0:02:58]} 3. e3 {[%clk 0:03:02]}  Nf6 {[%clk 0:02:58]} 4. Nc3 {[%clk 0:03:03]}  g6 {[%clk 0:02:58]} 5. d4 {[%clk 0:03:02]}  Bg7 {[%clk 0:02:59]} 6. Be2 {[%clk 0:03:03]}  O-O {[%clk 0:02:59]} 7. O-O {[%clk 0:03:03]}  Bg4 {[%clk 0:02:59]} 8. h3 {[%clk 0:03:02]}  Bxf3 {[%clk 0:02:59]} 9. Bxf3 {[%clk 0:03:02]}  e6 {[%clk 0:03:00]} 10. b3 {[%clk 0:03:02]}  Nbd7 {[%clk 0:02:59]} 11. Bb2 {[%clk 0:03:02]}  Re8 {[%clk 0:02:59]} 12. Re1 {[%clk 0:03:02]}  Qe7 {[%clk 0:02:59]} 13. g3 {[%clk 0:03:01]}  a5 {[%clk 0:02:59]} 14. a4 {[%clk 0:02:59]}  Rad8 {[%clk 0:02:52]} 15. Qc2 {[%clk 0:02:59]}  Rc8 {[%clk 0:02:43]} 16. Bg2 {[%clk 0:02:53]}  Qb4 {[%clk 0:02:40]} 17. c5 {[%clk 0:02:45]}  Nxc5 {[%clk 0:02:24]} 18. dxc5 {[%clk 0:02:44]}  Qxc5 {[%clk 0:02:24]} 19. Rac1 {[%clk 0:02:45]}  Nd7 {[%clk 0:02:23]} 20. h4 {[%clk 0:02:40]}  Qb4 {[%clk 0:02:22]} 21. h5 {[%clk 0:02:39]}  Nf6 {[%clk 0:02:04]} 22. hxg6 {[%clk 0:02:26]}  hxg6 {[%clk 0:01:59]} 23. Ne2 {[%clk 0:02:26]}  e5 {[%clk 0:01:53]} 24. Rb1 {[%clk 0:02:18]}  Nd7 {[%clk 0:01:49]} 25. e4 {[%clk 0:02:05]}  d4 {[%clk 0:01:42]} 26. Bh3 {[%clk 0:02:01]}  Rc7 {[%clk 0:01:40]} 27. Bxd7 {[%clk 0:02:00]}  Rxd7 {[%clk 0:01:39]} 28. Qd3 {[%clk 0:02:01]}  b5 {[%clk 0:01:32]} 29. Kg2 {[%clk 0:01:54]}  bxa4 {[%clk 0:01:28]} 30. bxa4 {[%clk 0:01:55]}  Qxa4 {[%clk 0:01:28]} 31. Ba3 {[%clk 0:01:52]}  Rdd8 {[%clk 0:01:22]} 32. Ng1 {[%clk 0:01:30]}  Rb8 {[%clk 0:01:21]} 33. Nf3 {[%clk 0:01:30]}  Rb5 {[%clk 0:01:16]} 34. Bd6 {[%clk 0:01:13]}  Rd8 {[%clk 0:01:07]} 35. Bc7 {[%clk 0:00:49]}  Rc8 {[%clk 0:01:05]} 36. Ra1 {[%clk 0:00:44]}  Qb3 {[%clk 0:00:59]} 37. Qxb3 {[%clk 0:00:43]}  Rxb3 {[%clk 0:01:00]} 38. Bxa5 {[%clk 0:00:44]}  Rb5 {[%clk 0:00:42]} 39. Nd2 {[%clk 0:00:42]}  f6 {[%clk 0:00:35]} 40. Nc4 {[%clk 0:00:41]}  Bf8 {[%clk 0:00:35]} 41. Bd2 {[%clk 0:00:37]}  Rcb8 {[%clk 0:00:31]} 42. Ra7 {[%clk 0:00:35]}  Rc5 {[%clk 0:00:30]} 43. Rc1 {[%clk 0:00:31]}  Rb3 {[%clk 0:00:20]} 44. Ra8 {[%clk 0:00:24]}  Kg7 {[%clk 0:00:18]} 45. g4 {[%clk 0:00:20]}  g5 {[%clk 0:00:18]} 46. Ra7+ {[%clk 0:00:18]}  Kg6 {[%clk 0:00:16]} 47. Ra6 {[%clk 0:00:19]}  Be7 {[%clk 0:00:12]} 48. Ra7 {[%clk 0:00:18]}  Bf8 {[%clk 0:00:11]} 49. Rc7 {[%clk 0:00:18]}  Rb8 {[%clk 0:00:03]} 50. Rd7 {[%clk 0:00:13]}  Rb3 {[%clk 0:00:03]} 51. Rd8 {[%clk 0:00:13]}  Kg7 {[%clk 0:00:03]} 52. Ra8 {[%clk 0:00:13]}  Rb7 {[%clk 0:00:02]} 53. Na5 {[%clk 0:00:10]}  Rxc1 {[%clk 0:00:02]} 54. Bxc1 {[%clk 0:00:11]}  Rb1 {[%clk 0:00:02]} 55. Bd2 {[%clk 0:00:09]}  c5 {[%clk 0:00:03]} 56. Nc4 {[%clk 0:00:08]}  Rb3 {[%clk 0:00:01]} 57. Ba5 {[%clk 0:00:08]} 1-0


[Site "https://www.chess.com"]

[Event "Titled Tuesday Blitz May 4 2021"]
[White "Khnykin, Nikolay"]
[Black "Yonal, Timur"]
[WhiteFideId "4188853"]
[BlackFideId "44115725"]
[WhiteElo "2280"]
[BlackElo "1694"]
[Result "1-0"]
[Round "10"]
[TimeControl "180+1"]
[Date "2021.05.04"]
[WhiteClock "0:01:36"]
[BlackClock "0:00:01"]

1. e4 {[%clk 0:02:59]}  c5 {[%clk 0:02:58]} 2. d4 {[%clk 0:02:59]}  cxd4 {[%clk 0:02:54]} 3. c3 {[%clk 0:02:59]}  d3 {[%clk 0:02:50]} 4. Bxd3 {[%clk 0:02:58]}  g6 {[%clk 0:02:33]} 5. Nf3 {[%clk 0:02:56]}  d6 {[%clk 0:02:21]} 6. Bc4 {[%clk 0:02:50]}  Bg7 {[%clk 0:02:14]} 7. O-O {[%clk 0:02:49]}  Nf6 {[%clk 0:02:11]} 8. e5 {[%clk 0:02:44]}  Nh5 {[%clk 0:01:01]} 9. exd6 {[%clk 0:02:00]}  Qxd6 {[%clk 0:00:57]} 10. Qxd6 {[%clk 0:01:58]}  exd6 {[%clk 0:00:54]} 11. Re1+ {[%clk 0:01:58]}  Kf8 {[%clk 0:00:43]} 12. Ng5 {[%clk 0:01:55]}  Nf6 {[%clk 0:00:18]} 13. Nxf7 {[%clk 0:01:53]}  d5 {[%clk 0:00:16]} 14. Nxh8 {[%clk 0:01:51]}  dxc4 {[%clk 0:00:14]} 15. Nxg6+ {[%clk 0:01:47]}  hxg6 {[%clk 0:00:13]} 16. Na3 {[%clk 0:01:47]}  Nc6 {[%clk 0:00:11]} 17. Nxc4 {[%clk 0:01:45]}  Bg4 {[%clk 0:00:02]} 18. Bg5 {[%clk 0:01:44]}  Rb8 {[%clk 0:00:02]} 19. f3 {[%clk 0:01:42]}  Bf5 {[%clk 0:00:01]} 20. g4 {[%clk 0:01:41]}  Bd3 {[%clk 0:00:01]} 21. Nd6 {[%clk 0:01:38]}  Ba6 {[%clk 0:00:01]} 22. Rad1 {[%clk 0:01:36]} 1-0


[Site "https://www.chess.com"]

[Event "Titled Tuesday Blitz May 4 2021"]
[White "Kilpatrick, Callum"]
[Black "katchesskat"]
[WhiteFideId "414425"]
[WhiteElo "2470"]
[BlackElo "2294"]
[Result "1-0"]
[Round "10"]
[TimeControl "180+1"]
[Date "2021.05.04"]
[WhiteClock "0:00:17"]
[BlackClock "0:00:03"]

1. e4 {[%clk 0:03:00]}  c5 {[%clk 0:02:56]} 2. Nf3 {[%clk 0:03:01]}  e6 {[%clk 0:02:57]} 3. d4 {[%clk 0:03:01]}  cxd4 {[%clk 0:02:57]} 4. Nxd4 {[%clk 0:03:02]}  a6 {[%clk 0:02:57]} 5. Bd3 {[%clk 0:03:01]}  Qc7 {[%clk 0:02:58]} 6. O-O {[%clk 0:03:01]}  b5 {[%clk 0:02:57]} 7. a4 {[%clk 0:02:59]}  bxa4 {[%clk 0:02:57]} 8. Rxa4 {[%clk 0:02:57]}  Bb7 {[%clk 0:02:57]} 9. Nc3 {[%clk 0:02:52]}  Nf6 {[%clk 0:02:56]} 10. Kh1 {[%clk 0:02:48]}  h5 {[%clk 0:02:55]} 11. f4 {[%clk 0:02:44]}  Bc5 {[%clk 0:02:51]} 12. e5 {[%clk 0:02:36]}  Ng4 {[%clk 0:02:47]} 13. Be4 {[%clk 0:02:33]}  Nc6 {[%clk 0:02:44]} 14. Nxc6 {[%clk 0:02:19]}  Bxc6 {[%clk 0:02:40]} 15. Rc4 {[%clk 0:01:58]}  Nf2+ {[%clk 0:02:34]} 16. Rxf2 {[%clk 0:01:58]}  Bxf2 {[%clk 0:02:34]} 17. Qf3 {[%clk 0:01:42]}  Qa7 {[%clk 0:01:51]} 18. Bxc6 {[%clk 0:01:09]}  dxc6 {[%clk 0:01:40]} 19. Ne4 {[%clk 0:01:09]}  Bh4 {[%clk 0:01:03]} 20. Nd6+ {[%clk 0:01:06]}  Kf8 {[%clk 0:01:00]} 21. Be3 {[%clk 0:00:54]}  Qd7 {[%clk 0:00:48]} 22. Rxc6 {[%clk 0:00:54]}  Rb8 {[%clk 0:00:39]} 23. b3 {[%clk 0:00:52]}  a5 {[%clk 0:00:37]} 24. f5 {[%clk 0:00:44]}  exf5 {[%clk 0:00:34]} 25. Nxf5 {[%clk 0:00:42]}  Bd8 {[%clk 0:00:17]} 26. e6 {[%clk 0:00:40]}  Qb7 {[%clk 0:00:09]} 27. Bc5+ {[%clk 0:00:23]}  Kg8 {[%clk 0:00:08]} 28. e7 {[%clk 0:00:19]}  Bxe7 {[%clk 0:00:08]} 29. Nxe7+ {[%clk 0:00:19]}  Kh7 {[%clk 0:00:08]} 30. Qf5+ {[%clk 0:00:17]}  g6 {[%clk 0:00:04]} 31. Qxf7+ {[%clk 0:00:17]}  Kh6 {[%clk 0:00:03]} 32. Qxg6# {[%clk 0:00:17]} 1-0


[Site "https://www.chess.com"]

[Event "Titled Tuesday Blitz May 4 2021"]
[White "Kiseljova, Marya"]
[Black "Ambrogi, Agustin"]
[WhiteFideId "4155009"]
[BlackFideId "170933"]
[WhiteElo "1797"]
[BlackElo "2214"]
[Result "1/2-1/2"]
[Round "10"]
[TimeControl "180+1"]
[Date "2021.05.04"]
[WhiteClock "0:00:15"]
[BlackClock "0:00:09"]

1. d4 {[%clk 0:03:00]}  e6 {[%clk 0:02:54]} 2. Bf4 {[%clk 0:02:53]}  f5 {[%clk 0:01:41]} 3. e3 {[%clk 0:02:48]}  Nf6 {[%clk 0:01:06]} 4. h3 {[%clk 0:02:41]}  b6 {[%clk 0:01:02]} 5. Nf3 {[%clk 0:02:39]}  Bb7 {[%clk 0:01:02]} 6. Nc3 {[%clk 0:02:38]}  Be7 {[%clk 0:01:02]} 7. Be2 {[%clk 0:02:21]}  O-O {[%clk 0:01:01]} 8. O-O {[%clk 0:02:12]}  Ne4 {[%clk 0:01:01]} 9. Nxe4 {[%clk 0:02:10]}  Bxe4 {[%clk 0:01:01]} 10. c4 {[%clk 0:02:03]}  d6 {[%clk 0:01:00]} 11. d5 {[%clk 0:02:00]}  e5 {[%clk 0:01:00]} 12. Bh2 {[%clk 0:01:58]}  Nd7 {[%clk 0:01:00]} 13. Nd2 {[%clk 0:01:56]}  Nc5 {[%clk 0:01:00]} 14. b4 {[%clk 0:01:43]}  Na6 {[%clk 0:00:51]} 15. f3 {[%clk 0:01:42]}  Bg5 {[%clk 0:00:51]} 16. fxe4 {[%clk 0:01:38]}  Bxe3+ {[%clk 0:00:48]} 17. Kh1 {[%clk 0:01:37]}  Nxb4 {[%clk 0:00:47]} 18. a3 {[%clk 0:01:21]}  Na6 {[%clk 0:00:45]} 19. exf5 {[%clk 0:01:15]}  Nc5 {[%clk 0:00:44]} 20. Rf3 {[%clk 0:01:06]}  Bd4 {[%clk 0:00:42]} 21. Nb3 {[%clk 0:01:03]}  Bxa1 {[%clk 0:00:41]} 22. Nxc5 {[%clk 0:01:01]}  bxc5 {[%clk 0:00:38]} 23. Qxa1 {[%clk 0:01:02]}  Rb8 {[%clk 0:00:38]} 24. Bg3 {[%clk 0:00:52]}  Qg5 {[%clk 0:00:37]} 25. Qf1 {[%clk 0:00:47]}  Rb2 {[%clk 0:00:31]} 26. Kh2 {[%clk 0:00:44]}  h5 {[%clk 0:00:25]} 27. Be1 {[%clk 0:00:28]}  h4 {[%clk 0:00:23]} 28. g3 {[%clk 0:00:18]}  e4 {[%clk 0:00:20]} 29. gxh4 {[%clk 0:00:18]}  Qh6 {[%clk 0:00:12]} 30. Rg3 {[%clk 0:00:17]}  Rxf5 {[%clk 0:00:08]} 31. Qxf5 {[%clk 0:00:16]}  Rxe2+ {[%clk 0:00:08]} 32. Bf2 {[%clk 0:00:16]}  e3 {[%clk 0:00:09]} 33. Qc8+ {[%clk 0:00:16]}  Kh7 {[%clk 0:00:09]} 34. Qg4 {[%clk 0:00:15]}  Rxf2+ {[%clk 0:00:08]} 35. Kg1 {[%clk 0:00:15]}  Qf6 {[%clk 0:00:08]} 36. Qh5+ {[%clk 0:00:15]}  Kg8 {[%clk 0:00:08]} 37. Qe8+ {[%clk 0:00:14]}  Kh7 {[%clk 0:00:08]} 38. Qh5+ {[%clk 0:00:15]}  Kg8 {[%clk 0:00:08]} 39. Qe8+ {[%clk 0:00:15]}  Kh7 {[%clk 0:00:09]} 40. Qh5+ {[%clk 0:00:15]} 1/2-1/2


[Site "https://www.chess.com"]

[Event "Titled Tuesday Blitz May 4 2021"]
[White "Kovalev, Vladislav"]
[Black "Kopjonkin, Kirill"]
[WhiteFideId "13504398"]
[BlackFideId "24140090"]
[WhiteElo "2573"]
[BlackElo "2224"]
[Result "1-0"]
[Round "10"]
[TimeControl "180+1"]
[Date "2021.05.04"]
[WhiteClock "0:00:05"]
[BlackClock "0:00:17"]

1. e4 {[%clk 0:03:00]}  c5 {[%clk 0:02:59]} 2. Nf3 {[%clk 0:03:00]}  d6 {[%clk 0:03:00]} 3. d4 {[%clk 0:03:01]}  cxd4 {[%clk 0:03:01]} 4. Nxd4 {[%clk 0:03:02]}  Nf6 {[%clk 0:03:01]} 5. Nc3 {[%clk 0:03:03]}  a6 {[%clk 0:03:02]} 6. Rg1 {[%clk 0:03:03]}  e5 {[%clk 0:03:00]} 7. Nb3 {[%clk 0:03:03]}  Be6 {[%clk 0:03:01]} 8. g4 {[%clk 0:03:03]}  d5 {[%clk 0:03:02]} 9. exd5 {[%clk 0:03:02]}  Nxd5 {[%clk 0:03:02]} 10. Nxd5 {[%clk 0:03:03]}  Qxd5 {[%clk 0:02:56]} 11. Qxd5 {[%clk 0:03:03]}  Bxd5 {[%clk 0:02:57]} 12. Be3 {[%clk 0:03:03]}  Nc6 {[%clk 0:02:52]} 13. O-O-O {[%clk 0:03:03]}  O-O-O {[%clk 0:02:48]} 14. g5 {[%clk 0:03:00]}  Be6 {[%clk 0:02:40]} 15. Rxd8+ {[%clk 0:02:57]}  Kxd8 {[%clk 0:02:35]} 16. Nc5 {[%clk 0:02:56]}  Bxc5 {[%clk 0:02:25]} 17. Bxc5 {[%clk 0:02:57]}  Kc7 {[%clk 0:02:25]} 18. b3 {[%clk 0:02:56]}  Nd4 {[%clk 0:02:18]} 19. Bd3 {[%clk 0:02:48]}  h6 {[%clk 0:02:09]} 20. g6 {[%clk 0:02:32]}  f6 {[%clk 0:02:02]} 21. Kb2 {[%clk 0:02:29]}  Rd8 {[%clk 0:01:56]} 22. Rg3 {[%clk 0:02:01]}  a5 {[%clk 0:01:54]} 23. Be4 {[%clk 0:01:46]}  f5 {[%clk 0:01:49]} 24. Bg2 {[%clk 0:01:39]}  f4 {[%clk 0:01:33]} 25. Rc3 {[%clk 0:01:15]}  Ne2 {[%clk 0:01:32]} 26. Rd3 {[%clk 0:00:43]}  Rxd3 {[%clk 0:01:18]} 27. cxd3 {[%clk 0:00:44]}  Nd4 {[%clk 0:01:13]} 28. Bf8 {[%clk 0:00:34]}  f3 {[%clk 0:00:52]} 29. Bh1 {[%clk 0:00:26]}  Bf5 {[%clk 0:00:44]} 30. Bxg7 {[%clk 0:00:26]}  Kd6 {[%clk 0:00:44]} 31. Bxh6 {[%clk 0:00:15]}  Bxg6 {[%clk 0:00:45]} 32. Be3 {[%clk 0:00:15]}  Bh5 {[%clk 0:00:43]} 33. Kc3 {[%clk 0:00:11]}  Kd5 {[%clk 0:00:43]} 34. a3 {[%clk 0:00:03]}  b5 {[%clk 0:00:42]} 35. Kb2 {[%clk 0:00:02]}  Ke6 {[%clk 0:00:23]} 36. Bd2 {[%clk 0:00:01]}  a4 {[%clk 0:00:18]} 37. bxa4 {[%clk 0:00:02]}  bxa4 {[%clk 0:00:19]} 38. Kc3 {[%clk 0:00:03]}  Kf5 {[%clk 0:00:16]} 39. Kb4 {[%clk 0:00:03]}  Be8 {[%clk 0:00:17]} 40. Be3 {[%clk 0:00:02]}  Kg4 {[%clk 0:00:17]} 41. h3+ {[%clk 0:00:03]}  Kxh3 {[%clk 0:00:16]} 42. Bxd4 {[%clk 0:00:03]}  exd4 {[%clk 0:00:17]} 43. Bxf3 {[%clk 0:00:04]}  Kh2 {[%clk 0:00:16]} 44. Be4 {[%clk 0:00:03]}  Kg1 {[%clk 0:00:16]} 45. f4 {[%clk 0:00:04]}  Kf2 {[%clk 0:00:17]} 46. f5 {[%clk 0:00:04]}  Ke3 {[%clk 0:00:18]} 47. f6 {[%clk 0:00:05]}  Kf4 {[%clk 0:00:19]} 48. Bd5 {[%clk 0:00:05]}  Ke3 {[%clk 0:00:19]} 49. Kc4 {[%clk 0:00:06]}  Bg6 {[%clk 0:00:17]} 50. f7 {[%clk 0:00:05]} 1-0


[Site "https://www.chess.com"]

[Event "Titled Tuesday Blitz May 4 2021"]
[White "Kraemer, Martin"]
[Black "elohunter1999"]
[WhiteFideId "4671910"]
[WhiteElo "2482"]
[BlackElo "2540"]
[Result "0-1"]
[Round "10"]
[TimeControl "180+1"]
[Date "2021.05.04"]
[WhiteClock "0:00:26"]
[BlackClock "0:01:06"]

1. d4 {[%clk 0:03:00]}  Nf6 {[%clk 0:02:58]} 2. c4 {[%clk 0:02:59]}  e6 {[%clk 0:02:56]} 3. Nc3 {[%clk 0:02:59]}  c5 {[%clk 0:02:55]} 4. d5 {[%clk 0:03:00]}  exd5 {[%clk 0:02:55]} 5. cxd5 {[%clk 0:03:01]}  d6 {[%clk 0:02:56]} 6. Nf3 {[%clk 0:03:00]}  g6 {[%clk 0:02:56]} 7. Bf4 {[%clk 0:02:59]}  Bg7 {[%clk 0:02:55]} 8. Qa4+ {[%clk 0:02:59]}  Bd7 {[%clk 0:02:55]} 9. Qb3 {[%clk 0:02:58]}  Qc7 {[%clk 0:02:53]} 10. e4 {[%clk 0:02:52]}  O-O {[%clk 0:02:39]} 11. Be2 {[%clk 0:02:47]}  b5 {[%clk 0:02:35]} 12. Bxb5 {[%clk 0:02:34]}  Nxe4 {[%clk 0:02:32]} 13. Nxe4 {[%clk 0:02:11]}  Qa5+ {[%clk 0:02:31]} 14. Bd2 {[%clk 0:01:48]}  Qxb5 {[%clk 0:02:31]} 15. Qxb5 {[%clk 0:01:48]}  Bxb5 {[%clk 0:02:32]} 16. Nxd6 {[%clk 0:01:49]}  Ba6 {[%clk 0:02:22]} 17. O-O-O {[%clk 0:01:40]}  Rd8 {[%clk 0:02:02]} 18. Ne4 {[%clk 0:01:07]}  Rxd5 {[%clk 0:01:49]} 19. Bc3 {[%clk 0:01:07]}  Rxd1+ {[%clk 0:01:43]} 20. Rxd1 {[%clk 0:01:08]}  Nc6 {[%clk 0:01:37]} 21. Bxg7 {[%clk 0:01:04]}  Kxg7 {[%clk 0:01:35]} 22. Nxc5 {[%clk 0:00:58]}  Be2 {[%clk 0:01:35]} 23. Rd7 {[%clk 0:00:48]}  Bxf3 {[%clk 0:01:34]} 24. gxf3 {[%clk 0:00:49]}  Ne5 {[%clk 0:01:34]} 25. Rc7 {[%clk 0:00:47]}  Nxf3 {[%clk 0:01:31]} 26. h3 {[%clk 0:00:46]}  h5 {[%clk 0:01:26]} 27. b4 {[%clk 0:00:44]}  g5 {[%clk 0:01:22]} 28. Kd1 {[%clk 0:00:34]}  Re8 {[%clk 0:01:15]} 29. Rxa7 {[%clk 0:00:31]}  Re1+ {[%clk 0:01:14]} 30. Kc2 {[%clk 0:00:32]}  g4 {[%clk 0:01:07]} 31. hxg4 {[%clk 0:00:28]}  h4 {[%clk 0:01:07]} 32. Ne6+ {[%clk 0:00:26]}  Rxe6 {[%clk 0:01:06]} 0-1


[Site "https://www.chess.com"]